{"text_format":"3","workbook":"xlsx","n_sheets":3,"sheets":["Palikimo turtas","Paveldimas turtas","Paveldėti įsipareigojimai"],"not_rendered":{"defined_names":1},"read":"whole","date_system":"1900"}

{"sheet":"Palikimo turtas","index":0,"n_rows":45,"n_cols":35,"rows_kept":45,"merged":[[0,1,0,30],[0,31,0,39],[1,1,5,39],[6,1,6,6],[6,7,6,39],[7,1,7,6],[7,7,7,39],[9,1,9,6],[9,7,9,39],[10,1,10,6],[10,7,10,39],[11,1,11,6],[11,7,11,20],[11,21,11,26],[11,27,11,30],[11,31,11,33],[11,34,11,39],[12,1,12,6],[12,7,12,20],[12,21,12,26],[13,1,13,6],[13,7,13,20],[13,21,13,26],[14,1,14,6],[14,7,14,20],[14,21,14,26],[15,1,15,6],[17,1,17,39],[18,1,18,6],[18,7,18,12],[18,13,18,15],[18,16,18,18],[18,19,18,26],[18,27,18,31],[18,32,18,39],[19,1,19,6],[19,7,19,12],[19,13,19,15],[19,16,19,18],[19,19,19,26],[19,27,19,31],[19,32,19,39],[20,1,20,6],[20,7,20,12],[20,13,20,15],[20,16,20,18],[20,19,20,26],[20,27,20,31],[20,32,20,39],[21,1,21,6],[21,7,21,12],[21,13,21,15],[21,16,21,18],[21,19,21,26],[21,27,21,31],[21,32,21,39],[22,1,22,6],[22,7,22,12],[22,13,22,15],[22,16,22,18],[22,19,22,26],[22,27,22,31],[22,32,22,39],[23,1,23,6],[23,7,23,12],[23,13,23,15],[23,16,23,18],[23,19,23,26],[23,27,23,31],[23,32,23,39],[25,1,25,39],[26,1,26,6],[26,7,26,12],[26,13,26,18],[26,19,26,26],[26,27,26,31],[26,32,26,39],[27,1,27,6],[27,7,27,12],[27,13,27,18],[27,19,27,26],[27,27,27,31],[27,32,27,39],[28,1,28,6],[28,7,28,12],[28,13,28,18],[28,19,28,26],[28,27,28,31],[28,32,28,39],[29,1,29,6],[29,7,29,12],[29,13,29,18],[29,19,29,26],[29,27,29,31],[29,32,29,39],[30,1,30,6],[30,7,30,12],[30,13,30,18],[30,19,30,26],[30,27,30,31],[30,32,30,39],[31,1,31,6],[31,7,31,12],[31,13,31,18],[31,19,31,26],[31,27,31,31],[31,32,31,39],[33,1,33,12],[33,14,33,39],[34,1,34,12],[34,14,34,21],[34,22,34,25],[34,26,34,33],[34,34,34,39],[35,2,35,12],[35,14,35,21],[35,22,35,25],[35,26,35,33],[35,34,35,39],[36,2,36,12],[36,14,36,21],[36,22,36,25],[36,26,36,33],[36,34,36,39],[37,2,37,12],[37,14,37,21],[37,22,37,25],[37,26,37,33],[37,34,37,39],[38,2,38,12],[38,14,38,21],[38,22,38,25],[38,26,38,33],[38,34,38,39],[39,2,39,12],[39,14,39,21],[39,22,39,25],[39,26,39,33],[39,34,39,39],[40,2,40,12],[40,14,40,21],[40,22,40,25],[40,26,40,33],[40,34,40,39],[41,2,41,12],[41,14,41,21],[41,22,41,25],[41,26,41,33],[41,34,41,39],[42,2,42,12],[42,14,42,21],[42,22,42,25],[42,26,42,33],[42,34,42,38],[43,2,43,12],[43,14,43,21],[43,22,43,25],[43,26,43,33],[43,34,43,39],[44,2,44,12],[44,14,44,21],[44,22,44,25],[44,26,44,33],[44,34,44,39]]}
[]
[null,"Palikimo turtas"]
[]
[]
[]
[]
[null,"Vykdomojo (-ųjų) asmens (-ų) vardas ir pavardė",{"$nulls":5},"Danas Barkus"]
[null,"Kontaktinė informacija",{"$nulls":5},"Aukštadvario g., Trakai 98052, Lietuva"]
[]
[null,"Mirusiojo vardas ir pavardė",{"$nulls":5},"Linas Šaltis"]
[null,"Adresas",{"$nulls":5},"6789 Aukštadvario g."]
[null,"Miestas",{"$nulls":5},"Trakai",{"$nulls":13},"Šalis",{"$nulls":5},"Vilnius",{"$nulls":3},"Pašto indeksas",null,null,98052]
[null,"SOCIALINIO DRAUDIMO NUMERIS",{"$nulls":5},"AAA-GG-SSSS",{"$nulls":13},"Užsiėmimas",{"$nulls":5},"Stomatologas"]
[null,"Gimimo data",{"$nulls":5},"1965-12-08",{"$nulls":13},"Gimimo vieta",{"$nulls":5},"Vilnius"]
[null,"Mirties data",{"$nulls":5},{"$f":"TODAY()-3","v":"2022-05-16"},{"$nulls":13},"Mirties vieta",{"$nulls":5},"Vilnius"]
[null,"Papildoma informacija"]
[]
[null,"  Sutuoktinis, vaikai ir kiti išlaikytiniai"]
[null,"Vardas ir pavardė",{"$nulls":5},"Ryšys",{"$nulls":5},"Priklausomas",null,null,"Amžius",null,null,"Adresas",{"$nulls":7},"Telefono numeris",{"$nulls":4},"El. paštas"]
[null,"Miglė Bočkutė",{"$nulls":5},"Asmeninis atstovas",{"$nulls":5},"Ne",null,null,30]
[null,"Anika Morkūnaitė",{"$nulls":5},"Sutuoktinis",{"$nulls":5},"Taip",null,null,35]
[null,"Augustinas Petrauskas",{"$nulls":5},"Vaikas",{"$nulls":5},"Taip",null,null,12]
[]
[]
[]
[null,"Profesionalūs patarėjai"]
[null,"Patarėjo tipas",{"$nulls":5},"Kontaktinis asmuo",{"$nulls":5},"Įmonė",{"$nulls":5},"Adresas",{"$nulls":7},"Telefono numeris",{"$nulls":4},"El. paštas"]
[null,"Buhalteris"]
[null,"Advokatas / notaras"]
[null,"Kita"]
[]
[]
[]
[null,"  Palikimo kontrolinis sąrašas",{"$nulls":12},"  Testamentai"]
[null,"    Kontrolinio sąrašo elementai",{"$nulls":12},"Paveldimas turtas",{"$nulls":7},"Vertė (EUR)",{"$nulls":3},"Paveldėti įsipareigojimai",{"$nulls":7},"Vertė (EUR)"]
[null,"✔","Paskutinė valia, testamentas arba bet kokie kiti dokumentai",{"$nulls":11},{"$f":"'Paveldimas turtas'!B12","v":"Banko sąskaita"},{"$nulls":7},{"$f":"'Paveldimas turtas'!G20","v":{"v":0,"d":"0.00 EUR"}},{"$nulls":3},{"$f":"'Paveldėti įsipareigojimai'!B11","v":"Būsto paskolos"},{"$nulls":7},{"$f":"'Paveldėti įsipareigojimai'!G18","v":{"v":0,"d":"0.00 EUR"}}]
[null,"✔","Seifo nuomos sutartis ir raktai",{"$nulls":11},{"$f":"'Paveldimas turtas'!B22","v":"Asmeninės investicijos"},{"$nulls":7},{"$f":"'Paveldimas turtas'!G30","v":{"v":0,"d":"0.00 EUR"}},{"$nulls":3},{"$f":"'Paveldėti įsipareigojimai'!B21","v":"Asmeninės paskolos ir kredito linijos"},{"$nulls":7},{"$f":"'Paveldėti įsipareigojimai'!G28","v":{"v":0,"d":"0.00 EUR"}}]
[null,"✖","Kompiuterių ir internetinių paskyrų slaptažodžiai",{"$nulls":11},{"$f":"'Paveldimas turtas'!B32","v":"Verslo interesai"},{"$nulls":7},{"$f":"'Paveldimas turtas'!G40","v":{"v":0,"d":"0.00 EUR"}},{"$nulls":3},{"$f":"'Paveldėti įsipareigojimai'!B31","v":"Verslo interesai"},{"$nulls":7},{"$f":"'Paveldėti įsipareigojimai'!G38","v":{"v":0,"d":"0.00 EUR"}}]
[null,"✔","Galiojančios pasitikėjimo sutartys",{"$nulls":11},{"$f":"'Paveldimas turtas'!B42","v":"Nekilnojamasis turtas"},{"$nulls":7},{"$f":"'Paveldimas turtas'!G50","v":{"v":0,"d":"0.00 EUR"}},{"$nulls":3},{"$f":"'Paveldėti įsipareigojimai'!B41","v":"Kredito kortelės"},{"$nulls":7},{"$f":"'Paveldėti įsipareigojimai'!G48","v":{"v":0,"d":"0.00 EUR"}}]
[null,"✔","Gyvybės draudimas, sveikatos / nelaimingo atsitikimo ir draudimo strategijos",{"$nulls":11},{"$f":"'Paveldimas turtas'!B52","v":"Pensijos planai"},{"$nulls":7},{"$f":"'Paveldimas turtas'!G60","v":{"v":0,"d":"0.00 EUR"}},{"$nulls":3},{"$f":"'Paveldėti įsipareigojimai'!B51","v":"Kiti įsipareigojimai"},{"$nulls":7},{"$f":"'Paveldėti įsipareigojimai'!G58","v":{"v":0,"d":"0.00 EUR"}}]
[null,"✔","Finansinės ataskaitos",{"$nulls":11},{"$f":"'Paveldimas turtas'!B62","v":"Draudimas"},{"$nulls":7},{"$f":"'Paveldimas turtas'!G70","v":{"v":0,"d":"0.00 EUR"}}]
[null,"✔","Per pastaruosius trejus metus gautos pajamų mokesčio deklaracijos",{"$nulls":11},{"$f":"'Paveldimas turtas'!B72","v":"Privačios paskolos ir būsto paskolos"},{"$nulls":7},{"$f":"'Paveldimas turtas'!G80","v":{"v":0,"d":"0.00 EUR"}}]
[null,"✔","Gimimo ir mirties liudijimai",{"$nulls":11},{"$f":"'Paveldimas turtas'!B82","v":"Domėjimasis kitu turtu ir pasitikėjimo fondais"},{"$nulls":7},{"$f":"'Paveldimas turtas'!G90","v":{"v":0,"d":"0.00 EUR"}}]
[null,"✖","Įrašai, būsto paskolos ir nuomos ataskaitos",{"$nulls":11},{"$f":"'Paveldimas turtas'!B92","v":"Asmeniniai daiktai ir kitas turtas"},{"$nulls":7},{"$f":"'Paveldimas turtas'!G100","v":{"v":0,"d":"0.00 EUR"}}]
[null,"☐","Neapmokėtos sąskaitos ir pastabos",{"$nulls":11},"Bendras paveldimas turtas",{"$nulls":7},{"$f":"'Paveldimas turtas'!G10","v":{"v":0,"d":"0.00 EUR"}},{"$nulls":3},"Įsipareigojimų iš viso",{"$nulls":7},{"$f":"SUM(AI36:AN44)","v":{"v":0,"d":"0.00 EUR"}}]

{"sheet":"Paveldimas turtas","index":1,"n_rows":100,"n_cols":8,"rows_kept":100,"merged":[[0,1,0,7],[1,1,5,7],[6,1,7,7],[11,1,11,7],[12,1,12,7],[21,1,21,7],[22,1,22,7],[31,1,31,7],[32,1,32,7],[41,1,41,7],[42,1,42,7],[51,1,51,7],[52,1,52,7],[61,1,61,7],[62,1,62,7],[71,1,71,7],[72,1,72,7],[81,1,81,7],[82,1,82,7],[91,1,91,7],[92,1,92,7]]}
[]
[null,"Paveldimas turtas"]
[]
[]
[]
[]
[null,"Naudokite šį darbalapį paveldėjimo turto inventoriui sukurti. Turėsite nustatyti kiekvieno turto rinkos vertę mirties dieną. Peržiūrėkite visus įrašus, įskaitant finansines ataskaitas, draudimo strategijas ir mokesčių grąžinimus, kad gautumėte rinkos reikšmes. Taip pat gali tekti įvertinti asmeninius daiktus (t. y. meno kūrinius, kolekcijas, antikvarinius daiktus ir kt.). Į inventorių būtinai įtraukite ir bet kokį turtą užsienyje, pvz., nekilnojamąjį turtą, vertybinius popierius ar užsienio verslo interesus. Norėdami sužinoti tikslią užsienio turto rinkos vertę, galbūt norėsite gauti profesionalią pagalbą."]
[]
[]
[null,"Iš viso turto",{"$nulls":4},{"$f":"lntBankoSąskaitos[[#Totals],[Balansas ]]+lntAsmeninėsInvesticijos[[#Totals],[Rinkos vertė]]+lntPalūkanosIšVerslo[[#Totals],[Vertė ]]+lntNekilnojamasisTurtas[[#Totals],[Rinkos kaina]]+lntPensijųPlanai[[#Totals],[Vertė ]]+lntDraudimas[[#Totals],[Pinigų vertė ]]+lntBūstoPaskolos[[#Totals],[Turimas balansas ]]+lntInvesticiniaiFondai[[#Totals],[Paskirstymo suma]]+lntKitasTurtas[[#Totals],[Vertė ]]","v":{"v":0,"d":"0.00 EUR"}}]
[]
[null,"Banko sąskaita"]
[null,"Išvardykite visas banko sąskaitas, įskaitant grynuosius pinigus, kelionių čekius, pinigų perlaidas ir sąskaitas komerciniuose bankuose, taupomuosiuose bankuose, kredito unijose ir kt. Įtraukite visus sąskaitoje nurodytus vardus ir pavardes ir faktinę pinigų vertę, kuri nurodo tikslią euro reikšmę ir pokyčio sumą mirties metu."]
[null,"Finansų institucija ","Adresas","Telefonas","Sąskaitos numeris","Sąskaitos tipas","Balansas ","Pastabos"]
[]
[]
[]
[]
[]
[null,"Suma",{"$nulls":4},{"$f":"SUBTOTAL(109,lntBankoSąskaitos[[Balansas ]])","v":{"v":0,"d":"0.00 EUR"}}]
[]
[null,"Asmeninės investicijos"]
[null,"Išvardykite grynųjų pinigų sąskaitas, maržos sąskaitas, neapmokestinamas taupomąsias sąskaitas, registruotuosius pensijų investicijų planus, registruotuosius pensijų pajamų fondus, įšaldytus pensijų pajamų fondus, įšaldytus investicijų planus, investicinius gyvybės pajamų fondus, nustatytas pensijų pajamų lėšas, registruotuosius švietimo lėšų planus, anuitetus ir kt."]
[null,"Įmonė","Adresas","Telefonas","Sąskaitos numeris","Naudos gavėjas","Rinkos vertė","Pastabos"]
[]
[]
[]
[]
[]
[null,"Suma",{"$nulls":4},{"$f":"SUBTOTAL(109,lntAsmeninėsInvesticijos[Rinkos vertė])","v":{"v":0,"d":"0.00 EUR"}}]
[]
[null,"Verslo interesai"]
[null,"Išvardykite visus verslo interesus, įskaitant individualiąsias įmones, profesinę veiklą, korporacijas, bendrijas, ribotosios atsakomybės bendroves ir bendrijas, bendrąsias įmones ir kitus verslo subjektus, skirtus ne viešai prekybai. "]
[null,"Įmonės pavadinimas","Adresas","Telefonas","Kontaktas","Tipas","Vertė ","Pastabos"]
[]
[]
[]
[]
[]
[null,"Suma",{"$nulls":4},{"$f":"SUBTOTAL(109,lntPalūkanosIšVerslo[[Vertė ]])","v":{"v":0,"d":"0.00 EUR"}}]
[]
[null,"Nekilnojamasis turtas"]
[null,"Išvardykite bet kokį nekilnojamąjį turtą, kurio savininkas arba bendrasavininkis yra palikėjas ir (arba) palikėjo sutuoktinis / partneris bet kuriame žemyne, įskaitant nekilnojamąjį turtą, įsigytą rekreaciniuose objektuose ir pakaitinio naudojimo turtą. Gauti dokumentų kopijas. Pateikite nekilnojamojo turto aprašą su fiziniu adresu. Nurodykite tikrąją turto rinkos vertę, remdamiesi naujausiu mokesčių mokėtojo įvertinimu."]
[null,"Adresas","Turimas pavadinimas","Telefonas","Kontaktas","Pirkimo kaina","Rinkos kaina","Pastabos"]
[]
[]
[]
[]
[]
[null,"Suma",{"$nulls":3},{"$f":"SUBTOTAL(109,lntNekilnojamasisTurtas[Pirkimo kaina])","v":{"v":0,"d":"0.00 EUR"}},{"$f":"SUBTOTAL(109,lntNekilnojamasisTurtas[Rinkos kaina])","v":{"v":0,"d":"0.00 EUR"}}]
[]
[null,"Pensijos planai"]
[null,"Išvardykite nustatytas išmokas, pinigų pirkimus ar nustatytas įmokas, DPSP ar grupines RRSP ir kt."]
[null,"Įmonė","Telefonas","Plano tipas","Naudos gavėjas","El. paštas","Vertė ","Pastabos"]
[]
[]
[]
[]
[]
[null,"Suma",{"$nulls":4},{"$f":"SUBTOTAL(109,lntPensijųPlanai[[Vertė ]])","v":{"v":0,"d":"0.00 EUR"}}]
[]
[null,"Draudimas"]
[null,"Įtraukite galiojančius pasitikėjimo fondus, gyvybės draudimo polisus su nurodytais naudos gavėjais ir investicines sąskaitas, kurios mirties atveju buvo perleistos kaip nepatentuotas turtas. Jeigu teismas pasiteirauja apie šį turtą, testamento vykdytojas gali nesunkiai remtis neįtraukto turto sąrašu ir paaiškinti, kodėl jo nėra paveldėjimo sąraše."]
[null,"Emitentas","Poliso numeris","Telefonas","Naudos gavėjas","Nominali vertė ","Pinigų vertė ","Pastabos"]
[]
[]
[]
[]
[]
[null,"Suma",{"$nulls":3},{"$f":"SUBTOTAL(109,lntDraudimas[[Nominali vertė ]])","v":{"v":0,"d":"0.00 EUR"}},{"$f":"SUBTOTAL(109,lntDraudimas[[Pinigų vertė ]])","v":{"v":0,"d":"0.00 EUR"}}]
[]
[null,"Privačios paskolos ir būsto paskolos"]
[null,"Išvardykite privačias paskolas ir hipotekas, kur skolintojas buvo miręs asmuo."]
[null,"Paskolos gavėjo vardas ir pavardė","Adresas","Telefonas","Tipas","Pradinė suma","Turimas balansas ","Pastabos"]
[]
[]
[]
[]
[]
[null,"Suma",{"$nulls":3},{"$f":"SUBTOTAL(109,lntBūstoPaskolos[Pradinė suma])","v":{"v":0,"d":"0.00 EUR"}},{"$f":"SUBTOTAL(109,lntBūstoPaskolos[[Turimas balansas ]])","v":{"v":0,"d":"0.00 EUR"}}]
[]
[null,"Domėjimasis kitu turtu ir pasitikėjimo fondais"]
[null,"Išvardykite mirusio asmens vardu registruotą turtą, saugomą kitų vardu (pvz., mirusio asmens kaip patikėtinio turimas turtas arba turtas, laikomas pagal įgaliojimą)."]
[null,"Turto / patikėjimo fondo pavadinimas","Vykdomojo (-ųjų) asmens (-ų) / patikėtinio vardas ir pavardė","Telefonas","Adresas","El. paštas","Paskirstymo suma","Pastabos"]
[]
[]
[]
[]
[]
[null,"Suma",{"$nulls":4},{"$f":"SUBTOTAL(109,lntInvesticiniaiFondai[Paskirstymo suma])","v":{"v":0,"d":"0.00 EUR"}}]
[]
[null,"Asmeniniai daiktai ir kitas turtas"]
[null,"Pavyzdžiui, surašykite visus asmeninius daiktus; automobilius, papuošalus, meno kūrinius, antikvarinius daiktus, baldus. Įtraukite daiktus, kurie galėjo būti laikomi seife arba saugykloje."]
[null,"Meniu elemento aprašas","Vieta","Telefonas","Kontaktas","Naudos gavėjas","Vertė ","Pastabos"]
[]
[]
[]
[]
[]
[null,"Suma",{"$nulls":4},{"$f":"SUBTOTAL(109,lntKitasTurtas[[Vertė ]])","v":{"v":0,"d":"0.00 EUR"}}]

{"sheet":"Paveldėti įsipareigojimai","index":2,"n_rows":58,"n_cols":8,"rows_kept":58,"merged":[[0,1,0,7],[1,1,5,7],[6,1,6,7],[10,1,10,7],[20,1,20,7],[30,1,30,7],[40,1,40,7],[50,1,50,7]]}
[]
[null,"Paveldėti įsipareigojimai"]
[]
[]
[]
[]
[null,"Naudokite šį darbalapį, kad gautumėte išsamią informaciją apie nekilnojamojo turto įsipareigojimus – tiek šalies viduje, tiek užsienyje. Reikės įvertinti kiekvieną įsipareigojimą mirties dieną."]
[]
[null,"Iš viso turto",{"$nulls":4},{"$f":"SUM(G18,G28,G38,G48,G58)","v":{"v":0,"d":"0.00 EUR"}}]
[]
[null,"Būsto paskolos"]
[null,"Finansų institucija ","Adresas","Telefonas","Turimas pavadinimas","Sąskaitos numeris","Balansas ","Pastabos"]
[]
[]
[]
[]
[]
[null,"Suma",{"$nulls":4},{"$f":"SUBTOTAL(109,lntBankoSąskaitos2[[Balansas ]])","v":{"v":0,"d":"0.00 EUR"}}]
[]
[]
[null,"Asmeninės paskolos ir kredito linijos"]
[null,"Finansų institucija","Adresas","Telefonas"," Sąskaitos numeris","Tipas","Balansas ","Pastabos"]
[]
[]
[]
[]
[]
[null,"Suma",{"$nulls":4},{"$f":"SUBTOTAL(109,lntAsmeninėsInvesticijos3[[Balansas ]])","v":{"v":0,"d":"0.00 EUR"}}]
[]
[]
[null,"Verslo interesai"]
[null,"Įmonės pavadinimas","Adresas"," Telefonas"," Kontaktas","Tipas","Vertė ","Pastabos"]
[]
[]
[]
[]
[]
[null,"Suma",{"$nulls":4},{"$f":"SUBTOTAL(109,lntPalūkanosIšVerslo4[[Vertė ]])","v":{"v":0,"d":"0.00 EUR"}}]
[]
[]
[null,"Kredito kortelės"]
[null,"Kredito kortelės įmonė","Įmonės adresas","Telefonas","Kortelės numeris","Galiojimo data ","Balansas ","Pastabos"]
[]
[]
[]
[]
[]
[null,"Suma",{"$nulls":4},{"$f":"SUBTOTAL(109,lntNekilnojamasisTurtas5[[Balansas ]])","v":{"v":0,"d":"0.00 EUR"}}]
[]
[]
[null,"Kiti įsipareigojimai"]
[null,"Meniu elemento aprašas","Vieta","Telefonas","Kontaktas","Naudos gavėjas","Vertė ","Pastabos"]
[]
[]
[]
[]
[]
[null,"Suma",{"$nulls":4},{"$f":"SUBTOTAL(109,lntPensijųPlanai6[[Vertė ]])","v":{"v":0,"d":"0.00 EUR"}}]